Cogmind - Beta 14 @@@ ROGUE MODE // 2024.09.06 @ 22:10:40 Player: Lunace Result: Smashed by cave-in Performance ------------- Evolutions (0) 0 Regions Visited (2) 400 Robots Destroyed (30) 150 Value Destroyed (715) 715 Prototype IDs (0) 0 Alien Tech Used (0) 0 Bonus (0) 0 TOTAL SCORE: 1265 Bonus ------- None Cogmind --------- Core Integrity 0/250 Matter 295/300 Energy 250/250 System Corruption 4% Temperature Cool (0) Movement Treading (160) Location -10/Subcaves Parts ------- > --- POWER (1) -------- Ion Engine > --- PROPULSION (2) --- Light Treads Spiked Treads > --- UTILITY (2) ------ Scrap Shield > --- WEAPON (2) ------- Subdweller Laser > --- INVENTORY (5) ---- Subdweller Power Source Light Treads Large Storage Unit Multitool Peak State ------------ > --- POWER ------------ Ion Engine > --- PROPULSION ------- Light Treads Spiked Treads > --- UTILITY ---------- Scrap Shield > --- WEAPON ----------- Subdweller Laser Makeshift Sword > --- INVENTORY -------- Light Treads Light Treads Large Storage Unit Subdweller Laser Battle Cannon [Rating: 14] Favorites ----------- Power Ion Engine Engine Ion Engine Propulsion Light Treads Treads Light Treads Utility Scrap Shield Device Seismic Detector Storage Large Storage Unit Protection Scrap Shield Weapon Subdweller Laser Energy Gun Subdweller Laser Energy Cannon Subdweller Beam Cannon Ballistic Gun Light Assault Rifle Ballistic Cannon Battle Cannon Special Weapon Mining Laser Slashing Weapon Makeshift Sword Build | -11 -10 -10 ------- Run | Yrd Mat Sub Slots Evolved . | . . . Power . | . . . Propulsion . | . . . Utility . | . . . Weapon . | . . . Parts Attached 37 | 7 6 24 Power 3 | 1 . 2 Engine 3 | 1 . 2 Core . | . . . Reactor . | . . . Propulsion 8 | 2 1 5 Treads 8 | 2 1 5 Leg . | . . . Wheel . | . . . Hover . | . . . Flight . | . . . Utility 5 | 2 1 2 Device 2 | 1 . 1 Storage 2 | 1 1 . Processor . | . . . Hackware . | . . . Protection 1 | . . 1 Artifact . | . . . Weapon 21 | 2 4 15 Energy Gun 6 | . 1 5 Energy Cannon 2 | . . 2 Ballistic Gun 8 | 2 1 5 Ballistic Cannon 1 | . . 1 Launcher . | . . . Special Weapon 2 | . 2 . Impact Weapon . | . . . Slashing Weapon 2 | . . 2 Piercing Weapon . | . . . Special Melee Weapon . | . . . Unidentified Prototypes . | . . . Parts Lost 7 | . . 7 Power 1 | . . 1 Propulsion 2 | . . 2 Utility . | . . . Weapon 4 | . . 4 Highest Loss Streak 2 | . . 2 To Critical Strikes . | . . . Average Slot Usage (%) 92 | . 99 91 Engine 13 | . 14 13 Treads 27 | . 27 28 Device 6 | . 14 5 Storage 6 | . 14 5 Protection 7 | . . 8 Energy Gun 12 | . 13 11 Energy Cannon 1 | . . 2 Ballistic Gun 4 | . 12 3 Ballistic Cannon 1 | . . 2 Special Weapon 2 | . 2 2 Slashing Weapon 5 | . . 6 Peak Build Rating 14 | 7 8 14 Average Rating 11 | 5 7 11 On Entrance 5 | . 7 8 Naked Turns . | . . . Heaviest Build 33 | 13 29 33 Greatest Support 40 | 40 40 40 Greatest Overweight (x) . | . . . Average Overweight (x) . | . . . Largest Inventory Capacity 15 | 8 15 15 Average Capacity 9 | 7 12 9 Most Carried 14 | 2 11 14 Average Carried 7 | 1 6 7 Final Capacity 15 | 8 15 5 Final Carried 11 | 2 11 4 Class Distribution -------------------- 87% | Mutant 12% | Subdweller-Mutant Dominant Class ---------------- Mutant | -10/Materials Mutant | -10/Subcaves Resources | -11 -10 -10 ----------- Run | Yrd Mat Sub Matter Collected 1029 | 292 59 678 Remotely . | . . . Salvage Created 894 | 66 130 698 Parts 72 | 10 10 52 Haulers Intercepted . | . . . Recyclers Shooed . | . . . Parts Field Recycled . | . . . Retrieved Matter . | . . . Parts Self-Destructed 28 | . . 28 Prevented . | . . . Kills | -11 -10 -10 ------- Run | Yrd Mat Sub Combat Hostiles Destroyed 25 | . 7 18 Melee 3 | . . 3 Guns 19 | . 7 12 Cannons 3 | . . 3 Classes Destroyed 6 | 1 2 3 Tunneler 3 | 3 . . Turret 2 | . . 2 Swarmer 12 | . 6 6 Grunt 1 | . 1 . Artisan 1 | . . 1 Subdweller 12 | . . 12 Best Kill Streak 4 | 2 4 3 Combat Bots Only 4 | . 4 3 Max Kills in Single Turn 2 | 1 1 2 Gunslinging 1 | . . 1 Exploded . | . . . Melee 1 | . . 1 Uniques/NPCs Destroyed . | . . . Combat | -11 -10 -10 -------- Run | Yrd Mat Sub Hostile Shots Fired 151 | . 38 113 Missed 44 | . 15 29 Damage Taken 1802 | . 183 1619 Core 279 | . 32 247 Absorbed by Shields . | . . . Regen/Repaired (Parts) 46 | . 46 . Core Remaining (%) 100 | 100 . . Volleys Fired 213 | 11 22 180 Largest 2 | 2 2 2 Hottest 120 | 40 100 120 Shots Fired 290 | 22 42 226 Gun 173 | 22 40 111 Cannon 96 | . . 96 Launcher . | . . . Special 21 | . 2 19 Kinetic 114 | 22 21 71 Thermal 176 | . 21 155 Explosive . | . . . Electromagnetic . | . . . Robot Hit Streak 13 | 8 5 13 Robot Miss Streak 6 | 1 6 2 Penetration Max . | . . . Secondary Targets 7 | . 3 4 Max Gunslinging Chain 1 | . 1 1 Shots Hit Robots 114 | 15 19 80 Core Hits 52 | 7 11 34 Critical Kills . | . . . Critical Parts Destroyed 1 | . . 1 Critical Strikes 1 | . . 1 Destroy 1 | . . 1 Melee Attacks 93 | . . 93 Impact . | . . . Slashing 93 | . . 93 Piercing . | . . . Sneak Attacks 1 | . . 1 Combat Hostiles . | . . . Follow-up Attacks . | . . . Damage Inflicted 1926 | 127 222 1577 Guns 1113 | 127 222 764 Cannons 371 | . . 371 Explosions . | . . . Melee 442 | . . 442 Ramming . | . . . Kinetic 664 | 127 60 477 Thermal 820 | . 162 658 Explosive . | . . . Electromagnetic . | . . . Impact . | . . . Slashing 442 | . . 442 Piercing . | . . . Highest Corruption . | . . . Average Corruption . | . . . Corruption Purged . | . . . Corruption Blocked . | . . . Overload Shots . | . . . Overflow Damage 38 | . . 38 Projectiles . | . . . Explosions . | . . . Melee 38 | . . 38 Knockbacks 2 | . . 2 Impact . | . . . Kinetic 1 | . . 1 Secondary 1 | . . 1 Self-Inflicted Damage . | . . . Shots . | . . . Rammed . | . . . Targets Rammed . | . . . Kicked . | . . . Crushed . | . . . Highest Temperature 100 | . 100 24 Average Temperature 28 | . 35 11 Received Heat Transfer 312 | . 6 306 Siege Activations . | . . . Robots Corrupted . | . . . Combat Hostiles . | . . . Parts Fried . | . . . Impact Corruptions . | . . . Robots Melted . | . . . Combat Hostiles . | . . . Parts Melted 4 | . . 4 Heat Transferred 1389 | . 481 908 Parts Sabotaged . | . . . Parts Stolen . | . . . Parts Stripped . | . . . Power Chain Reactions . | . . . Alert | -11 -10 -10 ------- Run | Yrd Mat Sub Peak Influence 184 | 15 184 . Initial 9 | . 9 . Average 56 | 5 65 . Maximum Alert Level . | . . . Low Security (%) 100 | 100 100 . Level 1 . | . . . Level 2 . | . . . Level 3 . | . . . Level 4 . | . . . Level 5 . | . . . High Security . | . . . Max Security . | . . . Squads Dispatched 2 | . 2 . Investigation . | . . . Extermination . | . . . Reinforcement 2 | . 2 . Assault . | . . . Garrison . | . . . Intercept . | . . . Searches Triggered . | . . . Construction Impeded . | . . . Haulers Reinforced . | . . . Active Scanning Responses . | . . . Cargo Convoy Interrupts . | . . . Stealth | -11 -10 -10 --------- Run | Yrd Mat Sub Distress Signals 2 | . 2 . Communications Jammed . | . . . Distress Signals . | . . . Times Spotted 37 | . 13 24 Peak Tracking Total 5 | . 5 5 Tactical Retreats 3 | . 1 2 Traps | -11 -10 -10 ------- Run | Yrd Mat Sub Traps Triggered 2 | . . 2 Indirectly . | . . . Trap Hack Attempts . | . . . Triggered . | . . . Disarmed . | . . . Reprogrammed . | . . . Reused . | . . . Traps Extracted . | . . . Installed . | . . . Triggered . | . . . Machines | -11 -10 -10 ---------- Run | Yrd Mat Sub Machines Disabled . | . . . Max in Single Turn . | . . . Machines Repaired . | . . . Machines Dismantled . | . . . Machines Sabotaged . | . . . Overloaded Fab Kills . | . . . Hacking | -11 -10 -10 --------- Run | Yrd Mat Sub Machines Accessed 7 | . 6 1 Terminals 4 | . 4 . Fabricators . | . . . Repair Stations 1 | . 1 . Recycling Units 1 | . 1 . Scanalyzers . | . . . Garrison Access . | . . . Total Hacks 22 | . 17 5 Successful 15 | . 10 5 Failed 7 | . 7 . Catastrophic 1 | . 1 . Database Lockouts . | . . . Manual 13 | . 13 . Terminals 12 | . 12 . Fabricators . | . . . Repair Stations 3 | . 3 . Recycling Units 2 | . 2 . Scanalyzers . | . . . Garrison Access . | . . . Terminal Hacks 5 | . . 5 Record 5 | . . 5 Fabricator Hacks . | . . . Repair Station Hacks 2 | . 2 . Scan Component 1 | . 1 . Repair 1 | . 1 . Recycling Unit Hacks 1 | . 1 . Retrieve Components 1 | . 1 . Scanalyzer . | . . . Garrison Access Hacks . | . . . Unauthorized Hacks 7 | . 7 . Terminals 6 | . 6 . Botnet 2 | . 2 . Skim 4 | . 4 . Fabricators . | . . . Repair Stations . | . . . Recycling Units 1 | . 1 . Recyclers 1 | . 1 . Scanalyzers . | . . . Garrison Access . | . . . Data Cores Recovered . | . . . Used . | . . . Hacking Detections 5 | . 5 . Full Trace Events . | . . . Feedback Events . | . . . Feedback Blocked . | . . . Robot Schematics Acquired . | . . . Robots Built . | . . . Authchips . | . . . Time . | . . . Total Robot Build Rating . | . . . Part Schematics Acquired . | . . . Parts Built . | . . . Authchips . | . . . Time . | . . . Total Part Build Rating . | . . . Parts Repaired 1 | . 1 . Time 26 | . 26 . Parts Recycled . | . . . Recycled Matter . | . . . Retrieved Matter . | . . . Retrieved Components 7 | . 7 . Parts Scanalyzed . | . . . Part Schematics Acquired . | . . . Parts Damaged . | . . . Bothacking | -11 -10 -10 ------------ Run | Yrd Mat Sub Used RIF Installer . | . . . Robots Hacked . | . . . Non-combat . | . . . Combat . | . . . Robot Hacks Applied . | . . . Relay Couplers Released . | . . . Fabnet Peak Effective % . | . . . Robots Rewired . | . . . Allies Hacked . | . . . Hacks Repelled . | . . . Allies | -11 -10 -10 -------- Run | Yrd Mat Sub Total Allies . | . . . Largest Group . | . . . Highest-Rated Group . | . . . Highest-Rated Ally . | . . . Total Orders . | . . . Ally Attacks . | . . . Total Damage . | . . . Kills . | . . . Allies Corrupted . | . . . Allies Melted . | . . . Intel | -11 -10 -10 ------- Run | Yrd Mat Sub Robot Analysis Total . | . . . Derelict Logs Recovered 2 | . . 2 Drone Launches . | . . . Drone Recoveries . | . . . Exploration | -11 -10 -10 ------------- Run | Yrd Mat Sub Turns Passed 5675 | 134 715 4826 Spaces Moved 2896 | 53 278 2565 Core 2 | 2 . . Treads 2894 | 51 278 2565 Legs . | . . . Wheels . | . . . Hover . | . . . Flight . | . . . Fastest Speed 50 | 50 160 160 Average Speed 159 | 155 160 160 Slowest Speed 160 | 160 160 160 Overloaded Moves . | . . . Propulsion Burnouts . | . . . Robots Hopped . | . . . Cave-ins Triggered 1 | . . 1 Exploration Rate (%) 51 | 3 52 98 Regions Visited 2 Branch Regions 1 Pre-discovered Areas 1 | . . 1 Known Exits Taken . | . . . Unknown Exits Taken 2 | 1 1 . Scrap Searched 7 | . . 7 Spaces Dug 71 | . 1 70 Terrain Destroyed 119 | . 1 118 Melee 60 | . . 60 Projectile 59 | . 1 58 AOE . | . . . Terrain Rammed . | . . . Walls Destroyed . | . . . Machines Disabled . | . . . Actions | -11 -10 -10 --------- Run | Yrd Mat Sub Total 3525 | 83 504 2938 Wait 226 | 11 189 26 Move 2894 | 52 277 2565 Hop . | . . . Pick Up 28 | 2 9 17 Fast Attach 11 | 7 1 3 Attach 9 | . . 9 Detach 2 | . . 2 Swap 17 | . 5 12 Drop 24 | . 1 23 Fire 213 | 11 22 180 Melee 93 | . . 93 Ram . | . . . Kick . | . . . Crush . | . . . Escape Stasis . | . . . Rewire . | . . . Trap . | . . . Miscellaneous 8 | . . 8 Route ------- -11/Scrapyard -10/Materials (discovered 4 exits: [*Mat x2] / [*Min] / *Sub) -10/Subcaves (discovered 3 exits: [*Mat x2] / [*Rec]) History --------- Turn | Location | Event 7 | -11/Scrapyard | Discovered new exit (range 15) 135 | -11/Scrapyard | Entered Materials 295 | -10/Materials | Discovered new exit (range 5) 305 | -10/Materials | Build established: Mutant 507 | -10/Materials | Repaired Lgt. Treads 557 | -10/Materials | Discovered new exit (range 14) 687 | -10/Materials | Discovered new exit (range 12) 844 | -10/Materials | Discovered new exit (range 3) 850 | -10/Materials | Entered Subcaves 945 | -10/Subcaves | Discovered new exit (range 11) 1258 | -10/Subcaves | Learned Materials non-interactive machine intel 1287 | -10/Subcaves | Shifting Twisted Machinery released Mak. Flight Unit 1764 | -10/Subcaves | Visited Clippyterm 1769 | -10/Subcaves | Learned location of Deep Caves (-6) 1769 | -10/Subcaves | Learned 40 Factory zone layouts 1980 | -10/Subcaves | Discovered new exit (range 15) 2092 | -10/Subcaves | Shifting Twisted Machinery released Battle Rifle 2092 | -10/Subcaves | Shifting Twisted Machinery released Battle Cannon 2231 | -10/Subcaves | Learned 2 Materials zone layouts 2522 | -10/Subcaves | A swath of the cavern ceiling suddenly collapsed 2852 | -10/Subcaves | Shifting Twisted Machinery released Scrap Shield 2861 | -10/Subcaves | Shifting Twisted Machinery released Battle Rifle 3260 | -10/Subcaves | Core integrity fell below 50% 3316 | -10/Subcaves | Build established: Subdweller-Mutant 3377 | -10/Subcaves | A swath of the cavern ceiling suddenly collapsed 3901 | -10/Subcaves | Discovered new exit (range 7) 4004 | -10/Subcaves | Build established: Mutant 4363 | -10/Subcaves | Ambushed by Subdweller buried in earth 4415 | -10/Subcaves | Ambushed by Subdweller buried in earth 5211 | -10/Subcaves | Ambushed by Subdweller buried in earth 5677 | -10/Subcaves | Crushed by falling debris 5677 | -10/Subcaves | Smashed by cave-in Last Messages --------------- 05479_ SM-GK9(R): "WEHOME!" 05502_ Lgt. Treads destroyed. 05504_ Sub. Power Source melted. 05504_ SM-GK9(R) destroyed. 05506_ Acquired 10 matter. 05509_ Acquired Scrap Shield. 05513_ Dropped Scrap Shield. 05514_ Acquired Sub. Laser. 05618_ Sneak attack on HM-7Q5(u). 05618_ Destroyed Wheel. 05618_ HM-7Q5(u) cries out in pain. 05618_ HM-7Q5(u) destroyed. 05622_ Acquired Multitool. 05635_ The unstable cave ceiling collapses. 05640_ Sub. Laser shoots sparks and powers down. 05642_ Dropped Broken Sub. Laser. 05677_ The unstable cave ceiling collapses. 05677_ Crushed by falling debris. 05677_ Mak. Sword destroyed. 05677_ System corrupted by crushing effect (+4). Map ----- +----------------------------------------------------+ | ??????????????????????##???# ## ############ | | ??????????????????????#"#### ## ## # | | ??????????????????????## # | | ??????????????????????#" ###### | | ??????????????????????#### #?##" " ##### | | ????????????????##?########## ""#?#" " ##???? | | ????????????????#"## # ## # """###=""" ##????? | | ??????????????#### " " "%""""#######? | | ??????????????#"# """"" ! ### #? | | ???????????????# "" # # """" % ! ## ## | | ???????????????# """" #####" %%= ## | | ???????????????# " """"#??##"" """ % | | ????????????#### """"""#### " ##"" ### | | ????????????#"# """##"#""""######## #?## | | ????????????##"""""%= """""""#?????## #??# | | ?????????????## """" # """"###??????#### ##??## | | ??????????????#####""####[#"###???????????###????? | | ??????????????????####??#;###????????????????????? | | ????????????????????????# #??????????????????????? | | ????????????????????????# #??????????????????????? | | ????????????????????????# #??????????????????????? | | ????????????????????????# #??????????????????????? | | ????????????????????????# #??????????????????????? | | ????????????????????????# #??????????????????????? | | ????????????????????????# #??????????????????????? | | ????????????????????????#@#??????????????????????? | | ????????????????????????# #??????????????????????? | | ????????????????????????###??????????????????????? | | ?????????????????????????????????????????????????? | | ?????????????????????????????????????????????????? | | ?????????????????????????????????????????????????? | | ?????????????????????????????????????????????????? | | ??????????????????????????????????????????##?????? | | ??????????????????????????????????????????# #??##? | | ???????????????????????????????????????????# #?#"# | | ????????????????????????????????????????????# ### | | ?????????????????????????????????????????????#"# | | ??????????????????????????????????????????????# | | ?????????????????????????????????????????##???#### | | ?????????????????????????????????????????#"###???# | | ?????????????????????????????????????????## ##??? | | ????????????????????????????????????????## ##?? | | ????????????????????????????????????????# ##? | | ????????????????????????????????????????# ## | | ?????????????######?????????????????##### # | | ????????????#######?????????????????# #" | | ????????????### "#######????????????#### | | ????????????## ""#######???????????????## | | ????????????##""" ""# ##????????????????## # | | ????????????###""###"###?????????????????## # | +----------------------------------------------------+ Best States ------------- Heat Dissipation 25 Energy Generation 15 Energy Capacity 250 Matter Stores 300 Matter Capacity 300 Sight Range 16 Terrain Scan Density 10 Armor Coverage 800 Evasion (%) 40 Recoil Reduction 2 Item Schematics ----------------- None Robot Schematics ------------------ None Fabricated ------------ Nothing Alien Tech Used ----------------- None Achievements -------------- None Challenges ------------ None Game ------ Seed HellfireLegInsulator Manual? 0 Play Time 00:29:59 Cumulative 333.7 hours Start 2024.09.06 @ 21:35:18 End 2024.09.06 @ 22:10:40 Sessions 1 Manual Loads 0 Difficulty Rogue Special Mode None Game No. 339 Rogue 334 Adventurer 5 Explorer 0 Win Type - Total 5 Types 4/0/0/1/0/0/0/0/0 Lore% 76 Gallery% 82 Achievement% 67 Wizard Run 0 Options --------- Layout 1 ASCII 0 Keyboard 0 Movement Arrows Keybinds 0 Fullscreen 1 Font 24/Terminus Map View 50x35 Zoom Use 0% Tactical HUD 1 Map Filters NONE Filters NONE Steam 1 RUN: 81a1dfb7-27cd-47ee-97d8-9d681df57f96